bitfinex-derivatives/quotes_ETHF0:USTF0_20250107
["timestamp","ask_amount","ask_price","bid_price","bid_amount"]
[1736270652191,3.34977824,3461.9,3461.8,3.50439485]
[1736270652393,0.28892,3462.0,3461.8,3.50439485]
[1736270652593,0.28892,3462.1,3461.8,3.79332485]
[1736270652893,3.2078,3462.2,3461.5,2.28129485]
[1736270653093,0.28896,3461.5,3461.2,3.79337485]
[1736270654294,0.28897,3461.4,3461.2,3.79337485]
[1736270654490,0.28897,3461.5,3461.2,3.79337485]
[1736270654695,3.2078,3461.8,3461.2,3.50439485]
[1736270654999,3.2078,3461.8,3461.1,1.3051]
[1736270655198,0.28898,3461.2,3461.1,1.3051]
[1736270655700,0.289,3461.0,3460.9,2.28129485]
[1736270655901,4.5018,3461.4,3460.9,2.28129485]
[1736270656100,0.289,3461.1,3460.9,2.57030485]
[1736270656394,3.2078,3461.0,3460.6,3.56139485]
[1736270656591,0.28903,3460.6,3460.5,6.75856016]
[1736270656794,0.28905,3460.5,3460.2,1.56916]
[1736270656994,0.28906,3460.3,3460.2,1.2801]
[1736270657295,4.5018,3460.5,3460.0,6.75856016]
[1736270657502,0.28908,3460.1,3460.0,6.75856016]
[1736270658002,0.28908,3460.1,3459.9,2.28129485]
[1736270658204,5.22443,3460.5,3459.9,2.28129485]
[1736270658605,0.28908,3460.1,3459.9,2.28129485]
[1736270659307,5.22443,3460.5,3459.8,0.2891]
[1736270659506,5.22443,3460.5,3459.7,6.51976687]
[1736270659702,0.28908,3460.1,3459.8,0.2891]
[1736270659896,0.28908,3460.1,3459.9,0.28909]
[1736270660305,4.5018,3460.5,3459.7,6.51976687]
[1736270660506,0.28907,3460.3,3460.1,3.01713687]
[1736270660806,0.28906,3460.4,3460.2,0.28907]
[1736270661209,0.28907,3460.2,3460.1,2.72806687]
[1736270661404,0.2891,3459.9,3459.7,6.80887687]
[1736270661605,0.28909,3460.0,3459.8,0.2891]
[1736270663115,0.28909,3460.0,3459.7,6.51976687]
[1736270663313,0.28909,3460.0,3459.8,0.2891]
[1736270663512,0.28909,3460.0,3459.9,0.28909]
[1736270663704,0.28909,3460.0,3459.7,3.7917]
[1736270663903,0.2891,3459.8,3459.7,6.51976687]
[1736270664111,0.2891,3459.9,3459.8,0.2891]
[1736270664311,3.2078,3460.5,3459.7,6.51976687]
[1736270664511,0.28909,3460.0,3459.8,0.2891]
[1736270664909,0.2891,3459.8,3459.7,4.00816687]
[1736270665114,0.2891,3459.8,3459.7,1.2801]
[1736270667215,3.93043,3460.5,3459.7,1.2801]
[1736270667414,0.28912,3459.6,3459.5,0.28912]
[1736270667819,0.72268,3460.3,3459.3,2.72806687]
[1736270668011,0.72268,3460.3,3459.4,0.28913]
[1736270668213,0.28912,3459.7,3459.6,0.28912]
[1736270668619,0.2891,3459.8,3459.7,0.2891]
[1736270668817,0.72268,3460.3,3459.4,0.72284]
[1736270669119,0.2891,3459.9,3459.8,0.2891]
[1736270669708,0.28909,3460.0,3459.9,0.28909]
[1736270669913,0.28909,3460.0,3459.8,0.28909]
[1736270670112,0.28909,3460.0,3459.9,0.28909]
[1736270670518,0.28908,3460.1,3459.9,0.28909]
[1736270671321,3.2078,3460.5,3459.7,2.72806687]
[1736270671521,0.28908,3460.1,3459.9,0.28909]
[1736270672021,0.28908,3460.1,3459.7,2.72806687]
[1736270672210,3.2078,3460.5,3459.7,2.72806687]
[1736270672415,0.28908,3460.1,3459.8,0.2891]
[1736270672614,0.28909,3460.0,3459.7,2.72806687]
[1736270672819,3.93043,3460.5,3459.7,2.72806687]
[1736270673021,0.28908,3460.1,3459.8,0.28909]
[1736270673321,3.2078,3460.5,3459.7,2.72806687]
[1736270673523,0.28907,3460.2,3459.9,0.28909]
[1736270673922,0.28908,3460.1,3459.9,0.28909]
[1736270674217,0.28906,3460.3,3460.0,0.28908]
[1736270674424,4.5028,3460.5,3459.8,1.2952]
[1736270674425,3.2078,3460.5,3460.1,1.2193]
[1736270674720,0.28907,3460.3,3460.1,1.2193]
[1736270674915,0.28907,3460.2,3460.1,1.2193]
[1736270676122,0.28909,3460.0,3459.8,1.2952]
[1736270676621,0.72265,3460.4,3459.7,5.93586687]
[1736270676822,3.2078,3460.0,3459.5,6.75856016]
[1736270677025,3.2078,3460.0,3459.5,7.04768016]
[1736270677219,3.2078,3460.0,3459.5,6.75856016]
[1736270677220,1.295,3459.9,3459.5,6.75856016]
[1736270677423,0.28911,3459.7,3459.5,6.75856016]
[1736270677625,0.28911,3459.8,3459.6,0.28912]
[1736270678221,1.295,3459.9,3459.6,0.28912]
[1736270678720,0.28911,3459.7,3459.6,0.28912]
[1736270678925,0.28911,3459.8,3459.6,0.28911]
[1736270679125,0.28911,3459.7,3459.6,0.28911]
[1736270679923,0.28912,3459.6,3459.5,0.28912]
[1736270680225,0.28913,3459.5,3459.4,1.3001]
[1736270680425,0.28913,3459.5,3459.4,1.58923]
[1736270680728,0.28913,3459.5,3459.4,1.3001]
[1736270681428,0.28913,3459.5,3459.4,1.58923]
[1736270683027,0.28913,3459.5,3459.4,1.3001]
[1736270683721,3.2078,3459.6,3459.3,1.21]
[1736270684119,0.28913,3459.4,3459.3,1.21]
[1736270686928,3.2078,3459.6,3459.1,3.2078]
[1736270687129,0.28915,3459.2,3459.1,3.2078]
[1736270687921,3.2078,3459.6,3459.1,3.2078]
[1736270688121,0.28915,3459.3,3459.1,3.2078]
[1736270688425,3.2078,3459.6,3459.1,3.2078]
[1736270688426,0.28914,3459.4,3459.1,3.49696]
[1736270688631,0.28913,3459.5,3459.2,0.28915]
[1736270689131,3.2078,3459.6,3459.1,3.2078]
[1736270689434,0.28913,3459.5,3459.2,0.28915]
[1736270689632,0.28913,3459.5,3459.1,3.49696]
[1736270689932,3.2078,3459.6,3459.1,3.49696]
[1736270689933,0.28914,3459.4,3459.1,3.49696]
[1736270690136,0.28913,3459.5,3459.1,3.2078]
[1736270690426,0.28914,3459.4,3459.1,3.2078]
[1736270690626,0.28914,3459.4,3459.1,3.49695]
[1736270691933,0.28913,3459.5,3459.2,0.28915]
[1736270692135,3.49692,3459.6,3459.3,2.57165669]
[1736270692635,3.49692,3459.6,3459.4,1.3029]
[1736270692835,0.28913,3459.5,3459.4,1.3029]
[1736270693637,3.49692,3459.6,3459.4,1.3029]
[1736270693829,3.2078,3460.2,3460.1,0.28908]
[1736270694035,3.2078,3460.2,3460.0,2.28251669]
[1736270694230,3.2078,3460.2,3460.1,1.59198]
[1736270694440,3.2078,3460.2,3460.1,2.83178]
[1736270694632,3.2078,3460.2,3460.1,2.5427]
[1736270694936,3.49687,3460.2,3460.1,2.5427]
[1736270695438,3.2078,3460.2,3460.1,2.5427]
[1736270695836,4.5008,3460.6,3460.1,2.5427]
[1736270696033,0.28907,3460.3,3460.1,2.5427]
[1736270696836,0.28907,3460.2,3460.1,2.5427]
[1736270697334,0.28907,3460.2,3460.1,1.3029]
[1736270697843,3.49687,3460.2,3460.1,1.3029]
[1736270700046,0.28907,3460.2,3460.1,1.3029]
[1736270700238,4.5008,3460.6,3460.1,1.3029]
[1736270700436,0.28905,3460.5,3460.3,2.28251669]
[1736270700834,0.28905,3460.5,3460.3,3.59871669]
[1736270701037,3.2078,3460.6,3460.4,0.28905]
[1736270701235,3.2078,3460.6,3460.5,0.28904]
[1736270702537,3.2078,3460.6,3460.5,10.64553394]
[1736270702842,3.49683,3460.6,3460.5,10.35649394]
[1736270703043,3.2078,3460.6,3460.5,10.35649394]
[1736270703246,3.49683,3460.6,3460.5,10.35649394]
[1736270703946,3.49683,3460.6,3460.5,4.54043736]
[1736270705441,0.28907,3460.2,3460.1,5.84333736]
[1736270706638,0.28907,3460.2,3460.1,1.3029]
[1736270706939,3.2078,3460.2,3459.9,4.54043736]
[1736270707242,0.28908,3460.0,3459.9,4.54043736]
[1736270707545,0.28908,3460.1,3459.9,4.82952736]
[1736270708238,3.2078,3460.2,3459.9,4.54043736]
[1736270708542,0.28908,3460.0,3459.9,4.82952736]
[1736270708748,0.28908,3460.0,3459.9,4.54043736]
[1736270711243,0.2891,3459.8,3459.7,4.54043736]
[1736270712137,3.4969,3459.8,3459.7,4.54043736]
[1736270712335,0.28912,3459.6,3459.5,5.75603736]
[1736270713145,0.28912,3459.7,3459.5,6.04515736]
[1736270713846,0.28912,3459.6,3459.5,5.75603736]
[1736270714745,0.28912,3459.6,3459.5,6.04516736]
[1736270715139,3.2078,3460.3,3459.5,5.75603736]
[1736270715447,0.28907,3460.2,3460.1,2.57158669]
[1736270716036,0.28907,3460.2,3460.1,2.28251669]
[1736270716236,3.2078,3460.3,3460.1,2.28251669]
[1736270716447,0.28906,3460.4,3460.3,0.28906]
[1736270716647,1.291,3460.7,3460.2,1.2363]
[1736270716945,0.28906,3460.3,3460.2,1.2363]
[1736270717148,0.28906,3460.3,3460.2,7.99486016]
[1736270718647,0.28906,3460.3,3460.2,5.77564972]
[1736270721449,0.28906,3460.3,3460.2,1.2363]
[1736270721648,3.2078,3460.5,3460.2,1.52536]
[1736270721849,0.28905,3460.4,3460.2,1.52536]
[1736270722243,3.2078,3460.5,3460.2,1.2363]
[1736270722442,3.2078,3460.5,3460.4,0.28905]
[1736270722642,3.49684,3460.5,3460.3,0.28906]
[1736270723045,3.2078,3460.5,3460.3,0.28906]
[1736270723447,3.2078,3460.5,3460.4,0.28905]
[1736270724046,3.2078,3461.0,3460.4,2.57156669]
[1736270724247,3.2078,3461.0,3460.9,2.28251669]
[1736270724443,3.4968,3461.0,3460.9,2.28251669]
[1736270724851,3.34977824,3461.3,3461.2,0.28898]
[1736270725050,3.34977824,3461.3,3461.2,2.28251669]
[1736270725350,3.63875824,3461.3,3461.2,2.28251669]
[1736270725553,3.34977824,3461.3,3460.9,3.54531669]
[1736270725755,0.289,3461.1,3460.9,3.83432669]
[1736270725946,0.289,3461.0,3460.9,3.54531669]
[1736270726449,0.289,3461.0,3460.9,8.08466641]
[1736270727445,0.28902,3460.8,3460.7,4.53934972]
[1736270728449,0.28903,3460.7,3460.6,3.59621669]
[1736270729460,0.28902,3460.8,3460.6,3.88524669]
[1736270729651,4.4988,3461.1,3460.6,3.59621669]
[1736270729851,0.28903,3460.7,3460.6,3.59621669]
[1736270730459,0.28903,3460.6,3460.2,4.53934972]
[1736270730656,0.28906,3460.3,3460.2,4.53934972]
[1736270730855,4.78686,3460.3,3460.2,4.53934972]
[1736270731057,1.57906,3460.3,3460.2,4.53934972]
[1736270731263,4.78686,3460.3,3460.2,4.53934972]
[1736270732558,0.2891,3459.9,3459.7,2.28251669]
[1736270732755,3.4969,3459.9,3459.7,2.28251669]
[1736270733156,3.2078,3459.9,3459.7,2.28251669]
[1736270733357,3.2078,3459.9,3459.8,0.2891]
[1736270733662,1.29,3460.3,3459.8,0.2891]
[1736270733958,0.28907,3460.2,3459.9,0.28909]
[1736270734161,0.28908,3460.1,3459.8,0.2891]
[1736270734664,0.2891,3459.9,3459.7,2.28251669]
[1736270734957,0.2891,3459.9,3459.4,5.90934972]
[1736270734958,3.2078,3460.1,3459.4,5.90934972]
[1736270735163,3.2078,3459.7,3459.4,8.48099641]
[1736270735366,3.2078,3460.1,3459.6,0.28912]
[1736270735564,0.28909,3460.0,3459.6,0.28912]
[1736270735762,0.28909,3460.0,3459.7,2.28251669]
[1736270736058,3.2078,3460.1,3459.7,2.28251669]
[1736270736261,4.78788,3460.1,3460.0,2.28251669]
[1736270737569,3.49688,3460.1,3460.0,2.28251669]
[1736270737770,0.2891,3459.8,3459.7,2.28251669]
[1736270737973,3.2078,3460.1,3459.5,2.80672]
[1736270737974,0.28912,3459.6,3459.5,9.27616016]
[1736270738369,0.28911,3459.7,3459.5,11.55867685]
[1736270738667,1.3157,3460.0,3459.5,11.55867685]
[1736270738668,0.28912,3459.6,3459.5,11.55867685]
[1736270738865,3.49692,3459.6,3459.5,6.75856016]
[1736270739271,3.49692,3459.6,3459.5,9.04107685]
[1736270739667,3.49692,3459.6,3459.5,2.28251669]
[1736270739964,0.28912,3459.6,3459.5,2.28251669]
[1736270740468,0.28911,3459.8,3459.5,2.28251669]
[1736270740670,0.28911,3459.8,3459.6,1.3075]
[1736270741266,3.2078,3460.0,3459.6,2.6235]
[1736270741465,0.2891,3459.8,3459.6,2.6235]
[1736270741661,3.2078,3460.0,3459.6,2.6235]
[1736270741868,0.2891,3459.9,3459.8,2.28251669]
[1736270742470,3.2078,3460.0,3459.8,2.28251669]
[1736270742774,0.28908,3460.1,3459.8,2.57161669]
[1736270742969,0.28908,3460.1,3459.9,1.2805]
[1736270743473,1.57807,3460.2,3459.9,1.2805]
[1736270743965,0.28908,3460.1,3459.9,1.2805]
[1736270746169,0.28907,3460.2,3459.9,1.2805]
[1736270746368,0.28908,3460.0,3459.9,1.2805]
[1736270748980,0.28909,3459.9,3459.8,4.53871811]
[1736270749777,0.28912,3459.6,3459.4,4.53871811]
[1736270750477,0.28913,3459.5,3459.4,4.53871811]
[1736270752177,3.2078,3460.0,3459.4,4.53871811]
[1736270752380,0.28913,3459.5,3459.4,4.53871811]
[1736270752681,0.28913,3459.5,3459.4,2.28251669]
[1736270754281,0.28913,3459.5,3459.4,6.8212348]
[1736270756578,0.28913,3459.5,3459.4,4.53871811]
[1736270757086,0.28913,3459.4,3459.3,4.53871811]
[1736270758480,3.2078,3459.6,3459.0,7.6104048]
[1736270758676,0.28916,3459.1,3459.0,5.03871811]
[1736270758879,3.49696,3459.1,3459.0,5.03871811]
[1736270759781,3.49696,3459.1,3459.0,0.5]
[1736270760079,3.2078,3459.1,3459.0,0.78917]
[1736270760284,0.28914,3459.4,3459.0,0.5]
[1736270760481,4.4968,3459.5,3459.0,0.5]
[1736270760788,3.49696,3459.1,3459.0,0.5]
[1736270767087,3.2078,3459.8,3459.0,1.22291]
[1736270767285,3.34977824,3460.1,3459.0,1.22291]
[1736270767286,3.34977824,3460.1,3459.9,0.28909]
[1736270767482,3.63885824,3460.1,3459.8,0.2891]
[1736270767684,3.34977824,3460.2,3459.8,1.3232]
[1736270767891,0.28908,3460.1,3459.8,1.6123]
[1736270768390,3.63884824,3460.2,3459.9,0.28909]
[1736270768591,3.34977824,3460.2,3459.9,0.28909]
[1736270769291,0.28907,3460.2,3459.9,0.28909]
[1736270769587,0.28908,3460.1,3459.8,1.6123]
[1736270769892,1.289,3460.3,3459.8,1.3232]
[1736270770183,0.28909,3459.9,3459.8,1.3232]
[1736270771183,1.58089,3460.0,3459.8,1.3232]
[1736270771383,1.58089,3460.0,3459.8,1.6123]
[1736270771591,1.58089,3460.0,3459.8,1.3232]
[1736270771792,0.28909,3459.9,3459.8,1.3232]
[1736270772185,1.58089,3460.0,3459.8,1.3232]
[1736270772493,0.28909,3459.9,3459.8,1.3232]
[1736270774697,0.28912,3459.6,3459.5,4.53871811]
[1736270775089,1.2918,3460.0,3459.5,4.53871811]
[1736270775389,0.28911,3459.7,3459.5,4.82783811]
[1736270775993,0.28911,3459.7,3459.5,0.28912]
[1736270776492,0.28911,3459.7,3459.5,0.28913]
[1736270777593,1.2918,3460.0,3459.4,4.53871811]
[1736270777895,2.57164669,3459.5,3459.4,4.53871811]
[1736270778096,3.85764669,3459.5,3459.4,4.53871811]
[1736270778299,4.19173,3459.5,3459.4,4.53871811]
[1736270778598,0.28915,3459.2,3459.1,4.53871811]
[1736270779799,0.28916,3459.1,3459.0,0.5]
[1736270784501,1.287,3459.2,3459.0,0.5]
[1736270784706,1.287,3459.4,3459.0,0.5]
[1736270784907,2.22786444,3459.5,3459.2,5.49031669]
[1736270785206,2.22786444,3459.5,3459.4,0.28913]
[1736270785599,3.34977824,3459.6,3459.5,0.28913]
[1736270785905,4.46637099,3459.8,3459.4,2.28251669]
[1736270786108,6.69955649,3460.4,3460.1,0.28907]
[1736270786109,0.28906,3460.4,3460.1,0.28907]
[1736270786309,0.28905,3460.5,3460.2,0.28907]
[1736270786510,0.28906,3460.4,3460.1,3.2078]
[1736270786805,0.28906,3460.3,3460.1,3.2078]
[1736270787105,0.28906,3460.4,3460.1,3.2078]
[1736270787303,0.28907,3460.2,3460.0,2.28251669]
[1736270787508,0.28906,3460.3,3460.0,2.57159669]
[1736270787911,0.28908,3460.1,3460.0,2.28251669]
[1736270788107,0.72259,3460.6,3459.9,4.53871811]
[1736270788296,0.72259,3460.6,3459.8,5.78191811]
[1736270788497,0.28909,3460.0,3459.8,5.78191811]
[1736270788706,0.28909,3459.9,3459.8,5.78191811]
[1736270788902,0.28912,3459.6,3459.5,2.39786758]
[1736270789097,3.2078,3459.6,3459.3,11.2916713]
[1736270789301,0.28913,3459.4,3459.3,11.2916713]
[1736270790004,0.28916,3459.1,3458.7,2.28251669]
[1736270790205,4.78396,3459.1,3458.5,2.6463]
[1736270791111,7.06647669,3459.1,3458.5,2.6463]
[1736270791316,7.06647669,3459.1,3459.0,1e-05]
[1736270792505,0.28924,3458.2,3458.1,1.3476]
[1736270793605,1.287,3458.3,3457.1,3.2078]
[1736270793914,0.28928,3457.7,3457.3,1.3126]
[1736270794111,0.2893,3457.5,3457.3,1.3126]
[1736270794512,0.28931,3457.4,3457.2,1.3062]
[1736270794712,0.28931,3457.3,3457.2,2.6103]
[1736270795712,3.2078,3457.4,3456.7,11.2916713]
[1736270796009,3.2078,3457.4,3456.6,3.2078]
[1736270796010,0.28934,3457.0,3456.6,4.73847]
[1736270796508,3.2078,3457.4,3456.6,6.73161669]
[1736270797009,0.28928,3457.8,3457.4,0.2893]
[1736270797208,3.2078,3458.0,3457.5,1.2413]
[1736270797414,0.28927,3457.8,3457.5,1.2413]
[1736270797609,0.28927,3457.8,3457.6,2.6065]
[1736270797812,0.28928,3457.7,3457.6,2.6065]
[1736270798013,4.4948,3458.0,3457.6,2.6065]
[1736270798315,0.28927,3457.8,3457.6,2.6065]
[1736270799216,0.28928,3457.7,3457.6,2.6065]
[1736270801507,0.28932,3457.2,3457.1,3.2078]
[1736270801712,5.22792,3457.6,3456.7,0.28936]
[1736270801906,0.28933,3457.1,3456.9,2.28251669]
[1736270802111,0.28934,3457.0,3456.9,2.28251669]
[1736270802607,5.22792,3457.6,3456.6,9.34431669]
[1736270802813,0.28936,3456.7,3456.6,9.34431669]
[1736270805108,0.28936,3456.7,3456.6,6.13651669]
[1736270806218,0.28936,3456.7,3456.6,6.42588669]
[1736270806422,4.4928,3457.2,3456.6,6.13651669]
[1736270806719,0.28935,3456.9,3456.8,0.28935]
[1736270806918,0.28936,3456.8,3456.7,0.28936]
[1736270807818,0.28935,3456.9,3456.8,0.28935]
[1736270808022,3.2078,3457.2,3456.7,2.28251669]
[1736270808220,1.285,3457.3,3456.6,3.854]
[1736270808221,0.28936,3456.7,3456.6,3.854]
[1736270808418,0.28936,3456.7,3456.6,2.5682]
[1736270808618,0.28936,3456.7,3456.6,1.3471]
[1736270810221,0.28937,3456.6,3456.5,0.049]
[1736270810522,1.2257,3456.6,3454.8,2.28251669]
[1736270810825,0.28952,3454.9,3454.7,11.2916713]
[1736270811121,1.285,3454.9,3454.7,11.2916713]
[1736270811619,1.285,3454.9,3454.8,3.8947]
[1736270811825,0.28951,3454.9,3454.8,3.8947]
[1736270813124,3.2078,3455.7,3454.8,3.8947]
[1736270813426,3.2078,3455.7,3455.3,2.73495272]
[1736270813625,3.49727,3455.7,3455.3,3.02444272]
[1736270813831,3.2078,3455.7,3455.3,3.02444272]
[1736270814221,3.2078,3455.7,3455.4,0.28949]
[1736270814419,3.49727,3455.7,3455.3,3.02445272]
[1736270814615,3.2078,3455.7,3455.3,2.73495272]
[1736270814817,3.49727,3455.7,3455.3,3.02445272]
[1736270815633,3.2078,3455.7,3455.6,0.28948]
[1736270815823,3.49727,3455.7,3455.4,0.28949]
[1736270816131,0.28948,3455.6,3455.5,2.4613]
[1736270816524,3.2078,3455.7,3455.5,2.75078]
[1736270816724,3.49728,3455.7,3455.5,2.4613]
[1736270816934,0.28948,3455.6,3455.5,2.4613]
[1736270817725,0.28948,3455.6,3455.5,1.2171]
[1736270818031,5.94275272,3455.7,3454.4,3.2078]
[1736270818226,0.72379,3455.2,3454.0,5.94275272]
[1736270818427,1.286,3455.1,3454.3,0.28958]
[1736270818633,0.28957,3454.6,3454.3,0.28958]
[1736270819029,1.286,3455.1,3454.0,5.94275272]
[1736270819237,3.2078,3454.9,3454.0,5.94275272]
[1736270819531,0.28961,3454.1,3454.0,2.73495272]
[1736270819733,0.2896,3454.2,3454.0,3.02456272]
[1736270820130,1.286,3454.1,3453.3,3.2078]
[1736270820326,0.28966,3453.4,3453.3,3.2078]
[1736270820526,1.286,3453.8,3453.4,0.28966]
[1736270820733,1.286,3453.9,3453.5,2.4931]
[1736270821029,0.28966,3453.5,3453.3,3.49747]
[1736270821229,1.286,3453.9,3453.3,2.4931]
[1736270821429,0.28963,3453.9,3453.4,3.2078]
[1736270821632,4.4938,3454.7,3453.6,2.73495272]
[1736270821839,4.4938,3454.7,3454.1,0.2896]
[1736270822043,4.4938,3454.7,3454.2,2.4931]
[1736270822044,0.28959,3454.3,3454.2,2.4931]
[1736270822835,4.4938,3454.7,3454.2,2.7827]
[1736270823032,0.28959,3454.4,3454.2,2.7827]
[1736270823234,3.2078,3455.1,3454.2,2.4931]
[1736270823539,0.2895,3455.4,3455.1,0.28952]
[1736270823733,0.28951,3455.3,3454.5,5.94275272]
[1736270823936,0.28949,3455.5,3455.3,0.2895]
[1736270824135,3.2078,3455.4,3455.3,0.2895]
[1736270824833,3.2078,3456.0,3455.9,0.28946]
[1736270825237,0.28941,3456.5,3456.3,0.28942]
[1736270825631,0.28941,3456.5,3456.2,0.28943]
[1736270825835,0.28941,3456.5,3456.3,0.28942]
[1736270826042,0.2894,3456.6,3456.3,0.28942]
[1736270826242,3.2078,3456.7,3455.8,2.6297]
[1736270826542,0.2894,3456.6,3456.3,0.28942]
[1736270827337,3.2078,3456.7,3455.8,2.6297]
[1736270827532,0.2894,3456.6,3456.1,0.28943]
[1736270827739,3.2078,3456.7,3455.9,2.73495272]
[1736270827939,3.2078,3456.7,3456.1,0.28943]
[1736270828141,0.28941,3456.5,3456.2,0.28943]
[1736270828339,0.28942,3456.4,3456.1,0.28943]
[1736270828536,3.2078,3456.3,3455.8,2.6297]
[1736270828737,0.28946,3455.9,3455.8,1.3242]
[1736270829145,1.286,3456.1,3455.3,4.4288]
[1736270829339,0.28946,3455.9,3455.6,0.28947]
[1736270829542,1.286,3456.1,3456.0,0.28945]
[1736270829842,3.2078,3456.3,3456.2,0.28943]
[1736270830039,0.28941,3456.5,3456.3,0.28942]
[1736270830240,0.28941,3456.5,3456.4,2.4461]
[1736270830846,4.4359,3456.7,3456.4,2.4461]
[1736270831047,4.72529,3456.7,3456.4,2.73551]
[1736270831242,4.72529,3456.7,3456.4,1.51041]
[1736270831446,4.72529,3456.7,3456.3,0.28942]
[1736270831645,4.72529,3456.7,3456.5,0.2894]
[1736270831646,4.4359,3456.7,3456.5,0.2894]
[1736270831951,3.2078,3456.7,3456.6,0.2894]
[1736270832251,3.2078,3456.7,3456.3,1.3419]
[1736270832252,3.2078,3456.7,3456.5,0.2894]
[1736270832949,3.49719,3456.7,3456.5,0.2894]
[1736270833150,3.49719,3456.7,3456.4,0.28941]
[1736270833350,3.49719,3456.7,3456.5,1.2589]
[1736270833853,0.2894,3456.6,3456.5,1.2589]
[1736270834052,0.2894,3456.6,3456.3,2.5514]
[1736270834053,0.28945,3456.0,3455.7,0.28947]
[1736270834343,3.2078,3456.1,3455.3,5.94275272]
[1736270834549,4.4875,3456.5,3455.7,2.73495272]
[1736270834748,4.4875,3456.5,3456.4,0.28941]
[1736270835148,4.4875,3456.5,3456.3,0.28942]
[1736270835344,4.4875,3456.5,3456.4,0.28941]
[1736270835546,4.4875,3456.5,3456.3,0.28942]
[1736270835745,4.77691,3456.5,3456.3,0.28942]
[1736270835945,4.77691,3456.5,3456.2,2.28650329]
[1736270836145,4.77691,3456.5,3456.3,0.28942]
[1736270836444,4.4875,3456.5,3456.4,0.28941]
[1736270836753,4.77691,3456.5,3456.2,2.57592329]
[1736270837145,4.4875,3456.5,3456.3,0.28942]
[1736270837346,4.77691,3456.5,3456.3,0.28942]
[1736270837952,4.77691,3456.5,3456.2,2.57593329]
[1736270838154,4.77691,3456.5,3456.2,2.28650329]
[1736270838452,4.77691,3456.5,3456.3,0.28942]
[1736270838853,4.4875,3456.5,3456.2,2.28650329]
[1736270839052,4.4875,3456.5,3456.4,0.28941]
[1736270839451,3.2078,3456.5,3456.4,0.28941]
[1736270841558,3.2078,3456.9,3456.8,0.28938]
[1736270842148,1.2512,3457.5,3457.4,0.28933]
[1736270842456,0.28932,3457.6,3457.4,2.28650329]
[1736270842654,0.28931,3457.6,3457.4,2.28650329]
[1736270842848,4.78111,3457.7,3457.5,0.28932]
[1736270843158,3.2078,3457.7,3457.6,0.28931]
[1736270844261,3.2078,3458.3,3457.6,3.2078]
[1736270844560,3.2078,3458.3,3458.2,2.57576329]
[1736270845051,3.2078,3458.3,3457.6,0.72327]
[1736270845260,3.2078,3458.3,3457.8,0.28929]
[1736270845261,0.28929,3458.0,3457.8,0.28929]
[1736270845854,3.49709,3457.9,3457.8,0.28929]
[1736270846746,3.49709,3457.9,3457.8,0.2893]
[1736270846951,0.2893,3457.8,3457.7,0.2893]
[1736270847654,3.2078,3457.9,3457.5,1.3029]
[1736270847857,4.4918,3458.4,3458.2,0.28926]
[1736270848056,4.4918,3458.4,3457.8,2.73171587]
[1736270848256,4.78105,3458.4,3458.3,0.28926]
[1736270848555,0.28927,3458.2,3458.1,0.28927]
[1736270849060,3.49705,3458.4,3458.3,0.28926]
[1736270849357,3.2078,3458.4,3458.3,0.28926]
[1736270850062,3.2078,3458.4,3457.9,1.2444]
[1736270850355,0.28928,3458.0,3457.9,1.2444]
[1736270850548,0.28928,3458.0,3457.9,1.53369]
[1736270850755,0.28928,3458.0,3457.6,0.28931]
[1736270850756,0.28931,3457.7,3457.6,0.28931]
[1736270850953,3.2078,3458.0,3457.5,1.3029]
[1736270851261,0.2893,3457.9,3457.8,0.28929]
[1736270851667,0.28931,3457.8,3457.7,0.2893]
[1736270851961,0.28931,3457.7,3457.6,0.28931]
[1736270852349,3.2078,3458.0,3457.5,1.3029]
[1736270852555,0.28931,3457.6,3457.5,1.59222]
[1736270852957,3.2078,3458.0,3457.7,0.2893]
[1736270853453,0.28931,3457.7,3457.6,0.28931]
[1736270854159,0.28931,3457.6,3457.5,1.59222]
[1736270854561,3.2078,3458.0,3457.5,1.3029]
[1736270854760,3.2078,3458.0,3457.9,0.28929]
[1736270854958,1.284,3458.2,3458.1,0.28927]
[1736270855161,3.49705,3458.4,3458.3,0.28926]
[1736270855758,3.49705,3458.4,3457.9,0.72323]
[1736270855759,0.28927,3458.2,3458.1,0.28926]
[1736270857368,0.28926,3458.3,3458.2,0.28926]
[1736270861559,3.49706,3458.4,3458.3,0.28926]
[1736270862167,3.2078,3458.4,3458.3,0.28926]
[1736270862571,3.49705,3458.4,3458.3,0.28926]
[1736270862770,0.28926,3458.3,3458.2,0.28926]
[1736270863976,3.49706,3458.4,3458.3,0.28926]
[1736270865069,3.2078,3458.4,3458.3,0.28926]
[1736270865269,3.49705,3458.4,3458.3,0.28926]
[1736270865471,0.28924,3458.6,3458.5,0.28923]
[1736270865672,2.53597082,3459.4,3459.0,0.2892]
[1736270865673,0.28918,3459.2,3459.0,0.2892]
[1736270865972,3.2078,3459.4,3459.1,2.28396532]
[1736270866177,0.28918,3459.2,3459.1,2.28396532]
[1736270866374,0.28918,3459.3,3459.1,2.57315532]
[1736270866672,3.2078,3459.4,3459.1,2.28396532]
[1736270866874,3.49697,3459.4,3459.2,0.28918]
[1736270867473,3.49697,3459.4,3459.1,2.57314532]
[1736270867775,3.49697,3459.4,3458.6,1.98157]
[1736270867776,0.28919,3459.1,3458.8,2.57317532]
[1736270867969,3.2078,3459.0,3458.5,2.28396532]
[1736270868169,0.28922,3458.8,3458.5,0.28924]
[1736270868478,1.3248,3458.7,3458.5,0.28924]
[1736270868680,0.28923,3458.6,3458.3,0.28925]
[1736270868879,1.3248,3458.7,3458.2,2.28396532]
[1736270869177,3.2078,3458.6,3458.2,2.28396532]
[1736270869475,3.49704,3458.6,3458.4,0.28925]